Cogmind - Beta 10.2 @@@ ROGUE MODE // 2020.12.13 @ 17:44:42 Player: CrossedViper Result: Destroyed by S-10 Pest with Light Assault Rifle Performance ------------- Evolutions (0) 0 Regions Visited (4) 800 Robots Destroyed (34) 170 Value Destroyed (636) 636 Prototype IDs (27) 540 Alien Tech Used (0) 0 Bonus (54) 54 TOTAL SCORE: 2200 Bonus ------- Aligned with FarCom 300 Friendly Fire -246 Cogmind --------- Core Integrity 0/250 Matter 244/300 Energy 250/250 System Corruption 0% Temperature Cool (0) Movement Walking (150) Ox1 Location -9/Mines Parts ------- > --- POWER (1) -------- Ion Engine > --- PROPULSION (2) --- Aluminum Leg Aluminum Leg > --- UTILITY (2) ------ Large Storage Unit Experimental Sensor Array > --- WEAPON (2) ------- Makeshift Spear > --- INVENTORY (10) --- Improved Ion Engine Light Treads Armored Wheel Large Storage Unit Propulsion Shielding Grenade Launcher Grenade Launcher Heavy Explosive Trap Heavy Explosive Trap Peak State ------------ > --- POWER ------------ Ion Engine > --- PROPULSION ------- Aluminum Leg Aluminum Leg > --- UTILITY ---------- Bomb Drone Bay > --- WEAPON ----------- Grenade Launcher Makeshift Spear > --- INVENTORY -------- Light Treads Large Storage Unit Cloak of Protection Grenade Launcher [Rating: 23] Favorites ----------- Power Ion Engine Engine Ion Engine Propulsion Aluminum Leg Leg Aluminum Leg Utility Large Storage Unit Device Experimental Sensor Array Storage Large Storage Unit Weapon Light EM Pulse Cannon Energy Gun Medium Laser Energy Cannon Light EM Pulse Cannon Ballistic Gun Light Assault Rifle Launcher Grenade Launcher Piercing Weapon Makeshift Spear Build | -11 -10 -10 -10 -9 ------- Run | Scr Mat Min Exi Min Slots Evolved . | . . . . . Power . | . . . . . Propulsion . | . . . . . Utility . | . . . . . Weapon . | . . . . . Parts Attached 19 | . 4 5 5 5 Power 1 | . . 1 . . Engine 1 | . . 1 . . Core . | . . . . . Reactor . | . . . . . Propulsion 3 | . . 1 . 2 Treads . | . . . . . Leg 3 | . . 1 . 2 Wheel . | . . . . . Hover . | . . . . . Flight . | . . . . . Utility 11 | . 2 2 4 3 Device 6 | . . . 3 3 Storage 5 | . 2 2 1 . Processor . | . . . . . Hackware . | . . . . . Protection . | . . . . . Artifact . | . . . . . Weapon 4 | . 2 1 1 . Energy Gun . | . . . . . Energy Cannon 2 | . 2 . . . Ballistic Gun . | . . . . . Ballistic Cannon . | . . . . . Launcher 1 | . . 1 . . Special Weapon . | . . . . . Impact Weapon . | . . . . . Slashing Weapon . | . . . . . Piercing Weapon 1 | . . . 1 . Special Melee Weapon . | . . . . . Unidentified Prototypes 2 | . . . 1 1 Parts Lost 3 | . 1 . 1 1 Power . | . . . . . Propulsion 1 | . . . 1 . Utility . | . . . . . Weapon 2 | . 1 . . 1 Highest Loss Streak 1 | . 1 . 1 1 Average Slot Usage (%) 97 | . 98 100 96 90 Engine 14 | . 14 14 14 14 Leg 27 | . 28 28 27 24 Device 2 | . . . 1 8 Storage 23 | . 27 28 23 14 Energy Gun 1 | . 6 . . . Energy Cannon 12 | . 14 21 7 . Ballistic Gun 1 | . 6 . . . Launcher 7 | . . 6 14 14 Piercing Weapon 4 | . . . 6 14 Naked Turns . | . . . . . Heaviest Build 45 | 12 45 45 44 27 Greatest Support 20 | 20 20 20 20 20 Greatest Overweight (x) 2 | . 2 2 2 2 Average Overweight (x) 1 | . 1 2 1 1 Largest Inventory Capacity 16 | . 16 16 16 10 Average Capacity 14 | . 15 16 14 10 Most Carried 16 | . 16 16 16 10 Average Carried 12 | . 10 15 13 7 Final Capacity 16 | 6 16 16 10 10 Final Carried 16 | 6 16 16 4 9 Class Distribution -------------------- 100% | Mutant Dominant Class ---------------- Mutant | -10/Materials Mutant | -10/Mines Mutant | -10/Exiles Mutant | -9/Mines Resources | -11 -10 -10 -10 -9 ----------- Run | Scr Mat Min Exi Min Matter Collected 457 | 200 55 23 . 179 Remotely . | . . . . . Salvage Created 952 | . 680 155 . 117 Parts 52 | . 30 13 . 9 Haulers Intercepted 1 | . 1 . . . Recyclers Shooed . | . . . . . Parts Field Recycled . | . . . . . Retrieved Matter . | . . . . . Parts Self-Destructed . | . . . . . Prevented . | . . . . . Kills | -11 -10 -10 -10 -9 ------- Run | Scr Mat Min Exi Min Combat Hostiles Destroyed 23 | . 11 8 . 4 Guns 4 | . 4 . . . Cannons 10 | . 6 4 . . AOE 8 | . 1 3 . 4 Classes Destroyed 9 | . 7 . . 2 Worker 2 | . 2 . . . Builder 3 | . 1 . . 2 Tunneler 1 | . . . . 1 Hauler 1 | . 1 . . . Recycler 2 | . 2 . . . Watcher 2 | . 2 . . . Swarmer 12 | . 6 6 . . Grunt 10 | . 5 2 . 3 Duelist 1 | . . . . 1 Best Kill Streak 5 | . 3 3 . 5 Combat Bots Only 4 | . 3 3 . 4 Max Kills in Single Turn 2 | . 1 2 . 1 Gunslinging . | . . . . . Exploded 2 | . 1 2 . 1 Melee . | . . . . . Uniques/NPCs Destroyed . | . . . . . Combat | -11 -10 -10 -10 -9 -------- Run | Scr Mat Min Exi Min Damage Taken 1002 | . 396 152 396 58 Core 254 | . 104 29 99 22 Absorbed by Shields . | . . . . . Core Remaining (%) 100 | 100 . . . . Volleys Fired 60 | . 38 14 . 8 Largest 2 | . 2 2 . 1 Hottest 112 | . 112 112 . 30 Shots Fired 106 | . 76 22 . 8 Gun 30 | . 30 . . . Cannon 65 | . 46 19 . . Launcher 11 | . . 3 . 8 Special . | . . . . . Kinetic 15 | . 15 . . . Thermal 15 | . 15 . . . Explosive 11 | . . 3 . 8 Electromagnetic 65 | . 46 19 . . Robot Hit Streak 11 | . 11 5 . 9 Robot Miss Streak 4 | . 4 1 . . Penetration Max . | . . . . . Secondary Targets 1 | . 1 . . . Max Gunslinging Chain 1 | . 1 . . . Shots Hit Robots 71 | . 50 13 1 7 Core Hits 42 | . 22 8 . 12 Critical Hits . | . . . . . Critical Kills . | . . . . . Critical Parts Destroyed . | . . . . . Melee Attacks 4 | . . . 1 3 Impact . | . . . . . Slashing . | . . . . . Piercing 4 | . . . 1 3 Sneak Attacks 4 | . . . 1 3 Combat Hostiles . | . . . . . Follow-up Attacks . | . . . . . Damage Inflicted 2450 | . 1142 497 82 729 Guns 200 | . 200 . . . Cannons 1046 | . 782 264 . . Explosions 805 | . 157 222 . 426 Melee 385 | . . . 82 303 Ramming 14 | . 3 11 . . Kinetic 64 | . 64 . . . Thermal 293 | . 293 . . . Explosive 648 | . . 222 . 426 Electromagnetic 1046 | . 782 264 . . Impact . | . . . . . Slashing . | . . . . . Piercing 385 | . . . 82 303 Highest Corruption . | . . . . . Average Corruption . | . . . . . Corruption Purged . | . . . . . Overload Shots . | . . . . . Overflow Damage 168 | . 8 . . 160 Projectiles 8 | . 8 . . . Explosions 13 | . . . . 13 Melee 147 | . . . . 147 Knockbacks . | . . . . . Impact . | . . . . . Kinetic . | . . . . . Secondary . | . . . . . Self-Inflicted Damage 86 | . 55 31 . . Shots 3 | . 2 1 . . Rammed 1 | . . 1 . . Targets Rammed 2 | . 1 1 . . Kicked 1 | . 1 . . . Crushed . | . . . . . Highest Temperature 249 | . 249 153 . 4 Average Temperature 76 | . 80 63 . 2 Received Heat Transfer 114 | . 99 . . 15 Siege Activations . | . . . . . Robots Corrupted 2 | . 1 1 . . Combat Hostiles 1 | . . 1 . . Parts Fried 6 | . 6 . . . Impact Corruptions . | . . . . . Robots Melted . | . . . . . Combat Hostiles . | . . . . . Parts Melted 1 | . 1 . . . Heat Transferred 557 | . 557 . . . Parts Sabotaged . | . . . . . Parts Stolen . | . . . . . Parts Stripped . | . . . . . Power Chain Reactions 2 | . 2 . . . Missiles Intercepted . | . . . . . Alert | -11 -10 -10 -10 -9 ------- Run | Scr Mat Min Exi Min Peak Influence 374 | . 374 228 . 115 Initial 93 | . . 93 . . Average 116 | . 159 127 . 47 Maximum Alert Level 1 | . 1 1 . . Low Security (%) 80 | . 71 74 . 100 Level 1 19 | . 28 25 . . Level 2 . | . . . . . Level 3 . | . . . . . Level 4 . | . . . . . Level 5 . | . . . . . High Security . | . . . . . Max Security . | . . . . . Squads Dispatched 1 | . 1 . . . Investigation . | . . . . . Extermination . | . . . . . Reinforcement 1 | . 1 . . . Assault . | . . . . . Garrison . | . . . . . Intercept . | . . . . . Construction Impeded . | . . . . . Haulers Reinforced . | . . . . . Stealth | -11 -10 -10 -10 -9 --------- Run | Scr Mat Min Exi Min Distress Signals 2 | . 2 . . . Communications Jammed . | . . . . . Distress Signals . | . . . . . Times Spotted 40 | . 23 7 3 7 Peak Tracking Total 5 | . 5 3 5 3 Tactical Retreats 1 | . 1 . . . Traps | -11 -10 -10 -10 -9 ------- Run | Scr Mat Min Exi Min Traps Triggered . | . . . . . Indirectly . | . . . . . Trap Hack Attempts . | . . . . . Triggered . | . . . . . Disarmed . | . . . . . Reprogrammed . | . . . . . Reused . | . . . . . Traps Extracted . | . . . . . Installed 1 | . . . . 1 Triggered . | . . . . . Power Sources Rigged 2 | . . . 2 . Exploded 2 | . . . 2 . Machines | -11 -10 -10 -10 -9 ---------- Run | Scr Mat Min Exi Min Machines Disabled 2 | . 1 1 . . Max in Single Turn 1 | . 1 1 . . Machines Sabotaged . | . . . . . Garrisons Compromised . | . . . . . Overloaded Fab Kills . | . . . . . Fab Network Shutdowns . | . . . . . Hacking | -11 -10 -10 -10 -9 --------- Run | Scr Mat Min Exi Min Machines Accessed 6 | . 3 1 1 1 Terminals 4 | . 3 . . 1 Fabricators . | . . . . . Repair Stations . | . . . . . Recycling Units . | . . . . . Scanalyzers . | . . . . . Garrison Access . | . . . . . Total Hacks 12 | . 7 1 1 3 Successful 7 | . 3 1 1 2 Failed 5 | . 4 . . 1 Catastrophic 1 | . 1 . . . Database Lockouts . | . . . . . Manual 6 | . 4 . 1 1 Terminals 10 | . 7 . . 3 Fabricators . | . . . . . Repair Stations . | . . . . . Recycling Units . | . . . . . Scanalyzers . | . . . . . Garrison Access . | . . . . . Terminal Hacks 6 | . 3 1 1 1 Prototype ID Bank 1 | . 1 . . . Open Door 1 | . . 1 . . Branch Access Points 1 | . 1 . . . Recall Reinforcements 1 | . 1 . . . Zone Layout 1 | . . . . 1 EX-Prototype ID Bank 1 | . . . 1 . Fabricator Hacks . | . . . . . Repair Station Hacks . | . . . . . Recycling Unit Hacks . | . . . . . Scanalyzer . | . . . . . Garrison Access Hacks . | . . . . . Unauthorized Hacks 1 | . . . . 1 Terminals 1 | . . . . 1 Track 1 | . . . . 1 Fabricators . | . . . . . Repair Stations . | . . . . . Recycling Units . | . . . . . Scanalyzers . | . . . . . Garrison Access . | . . . . . Data Cores Recovered . | . . . . . Used . | . . . . . Hacking Detections 3 | . 3 . . . Full Trace Events 1 | . 1 . . . Feedback Events . | . . . . . Feedback Blocked . | . . . . . Robot Schematics Acquired . | . . . . . Robots Built . | . . . . . Matter . | . . . . . Time . | . . . . . Total Robot Build Rating . | . . . . . Part Schematics Acquired . | . . . . . Parts Built . | . . . . . Matter . | . . . . . Time . | . . . . . Total Part Build Rating . | . . . . . Parts Repaired . | . . . . . Time . | . . . . . Parts Recycled . | . . . . . Recycled Matter . | . . . . . Retrieved Matter . | . . . . . Retrieved Components . | . . . . . Parts Scanalyzed . | . . . . . Part Schematics Acquired . | . . . . . Parts Damaged . | . . . . . Bothacking | -11 -10 -10 -10 -9 ------------ Run | Scr Mat Min Exi Min Used RIF Installer . | . . . . . Robots Hacked . | . . . . . Non-combat . | . . . . . Combat . | . . . . . Robot Hacks Applied . | . . . . . Relay Couplers Released . | . . . . . Robots Rewired . | . . . . . Allies Hacked . | . . . . . Hacks Repelled . | . . . . . Allies | -11 -10 -10 -10 -9 -------- Run | Scr Mat Min Exi Min Total Allies . | . . . . . Largest Group . | . . . . . Highest-Rated Group . | . . . . . Highest-Rated Ally . | . . . . . Total Orders . | . . . . . Ally Attacks 16 | . . . 16 . Total Damage . | . . . . . Kills . | . . . . . Allies Corrupted . | . . . . . Allies Melted . | . . . . . Intel | -11 -10 -10 -10 -9 ------- Run | Scr Mat Min Exi Min Robot Analysis Total . | . . . . . Derelict Logs Recovered 2 | . . . . 2 Drone Launches 16 | . . . 16 . Drone Recoveries . | . . . . . Exploration | -11 -10 -10 -10 -9 ------------- Run | Scr Mat Min Exi Min Turns Passed 3017 | . 835 917 607 658 Spaces Moved 1551 | 1 426 477 343 304 Core . | . . . . . Treads . | . . . . . Legs 1551 | 1 426 477 343 304 Wheels . | . . . . . Hover . | . . . . . Flight . | . . . . . Fastest Speed 120 | 120 120 180 120 150 Average Speed 167 | 120 161 180 168 157 Slowest Speed 180 | 120 180 180 180 180 Overloaded Moves . | . . . . . Propulsion Burnouts . | . . . . . Robots Hopped . | . . . . . Cave-ins Triggered . | . . . . . Exploration Rate (%) 59 | 2 85 96 41 72 Regions Visited 4 Branch Regions 3 Pre-discovered Areas 2 | . . . . 2 Known Exits Taken 1 | . 1 . . . Unknown Exits Taken 3 | 1 . 1 1 . Scrap Searched 3 | . . 1 . 2 Spaces Dug 8 | . . . . 8 Terrain Destroyed 82 | . 14 31 . 37 Melee . | . . . . . Projectile . | . . . . . AOE 82 | . 14 31 . 37 Terrain Rammed . | . . . . . Walls Destroyed . | . . . . . Machines Disabled . | . . . . . Actions | -11 -10 -10 -10 -9 --------- Run | Scr Mat Min Exi Min Total 1868 | . 499 514 380 475 Wait 164 | . 12 11 . 141 Move 1547 | . 425 476 342 304 Hop . | . . . . . Pick Up 39 | . 15 2 13 9 Fast Attach 3 | . 1 . 2 . Attach 8 | . 1 . 3 4 Detach 2 | . . . . 2 Swap 8 | . 2 5 . 1 Drop 28 | . 4 5 17 2 Fire 60 | . 38 14 . 8 Melee 4 | . . . 1 3 Ram . | . . . . . Kick 2 | . 1 1 . . Crush . | . . . . . Escape Stasis . | . . . . . Rewire . | . . . . . Trap 3 | . . . 2 1 Miscellaneous . | . . . . . Route ------- -11/Scrapyard -10/Materials (discovered 4 exits: [*Mat x2] / *Min x2) -10/Mines (discovered 3 exits: [*Mat x2] / *Exi) -10/Exiles -9/Mines History --------- Turn | Location | Event 1 | -11/Scrapyard | Discovered new exit (range 0) 1 | -11/Scrapyard | Entered Materials 127 | -10/Materials | Discovered new exit (range 9) 207 | -10/Materials | Discovered new exit (range 16) 302 | -10/Materials | Build established: Mutant 381 | -10/Materials | Identified exit to Mines 741 | -10/Materials | Discovered new exit (range 15) 836 | -10/Materials | Entered Mines 856 | -10/Mines | Discovered new exit (range 10) 1041 | -10/Mines | Discovered new exit (range 8) 1307 | -10/Mines | Core integrity fell below 50% 1540 | -10/Mines | Found the Drone Emporium 1552 | -10/Mines | Found Prototype Device 1611 | -10/Mines | A weapon hastily lodged in a ceiling crevice suddenly fell to the ground 1746 | -10/Mines | Deemed a non-threat by the Exiles lab entrance 1746 | -10/Mines | Discovered new exit (range 5) 1753 | -10/Mines | Entered Exiles 1892 | -10/Exiles | Met 8R-AWN 1920 | -10/Exiles | Met EX-HEX 2000 | -10/Exiles | Met EX-BIN 2021 | -10/Exiles | Aligned with FarCom system 2023 | -10/Exiles | Given EX-Vault access code 2064 | -10/Exiles | Opened EX-Vault 2082 | -10/Exiles | Found Modified TNC 2087 | -10/Exiles | Found Cloak of Protection 2091 | -10/Exiles | Found PSU Rigger 2131 | -10/Exiles | Warned to stay clear of 0b10 Research branches 2288 | -10/Exiles | Discovered new exit (range 14) 2291 | -10/Exiles | Identified Bomb Drone Bay 2318 | -10/Exiles | Attacked by the Exiles 2342 | -10/Exiles | Core integrity fell below 20% 2360 | -10/Exiles | Entered Mines 2398 | -9/Mines | Met a Derelict bent on vengeance 2425 | -9/Mines | Found a damaged Exp. Sensor Array with a note attached 2429 | -9/Mines | Found Prototype Device 2432 | -9/Mines | Identified Exp. Sensor Array 2586 | -9/Mines | Found a hidden stash of uninstalled traps 2756 | -9/Mines | Assembled infested the area 2761 | -9/Mines | Assisted by a Guerilla fighting off Assembled 3011 | -9/Mines | Learned location of Zion (-7) 3018 | -9/Mines | Destroyed by S-10 Pest with Light Assault Rifle Last Messages --------------- 02982_ Acquired 7 matter. 02982_ U-05 Engineer lays Concrete. 02983_ U-05 Engineer builds a Wall. 02985_ Sneak attack on U-05 Engineer. 02985_ Destroyed Wheel. 02985_ Destroyed Lgt. Ion Engine. 02986_ The unstable cave ceiling collapses. 02987_ Sneak attack on U-05 Engineer. 02987_ Destroyed Terrain Scanner. 02987_ Destroyed Welding Torch. 02987_ U-05 Engineer destroyed. 02989_ Acquired 24 matter. 02992_ Acquired 38 matter. 02995_ U-05 Engineer lays Concrete. 02997_ U-05 Engineer builds a Wall. 02998_ K-01 Serf collects debris. 03003_ U-05 Engineer lays Concrete. 03011_ Acquired derelict log, extracted data. World map updated: -7/Zion. 03016_ Grenade Launcher destroyed. Map ----- +----------------------------------------------------+ | ##?#####?????????## #???????? ####?? | | #????# ??????????#" #????????? ##? | | # ##????# ????####??# #????????? #? | | # ##?##### ???? #??# "#####????# #? | | # #??# ??## #?## # # #???## #? | | # ##??? % ### ###" ##"""##### #?? | | # ##???????# ? ?% % ### ^ ##? | | ##????????# # # ##"" "### #? | | ???????????# ## #### #### #? | | ??????????# ####??# ## #? | | ##???????# ?# #????# #? | | ?#???????# # ##?# ##????## ##? | | #???????### ??#?###??????## """ ##?? | | #???????????#% ???# #?#???????## """ #??? | | ???????????????# ????# ## #???????## """ ##?? | | ? ???????????? ?????# #?????????# #?? | | ? ??????????? ??????# ## #?????????## ##? | | ? ??????????##???????? ?# #???##?????## #? | | # ???????????????????# ?# #### #####??## #? | | ????????###????????# ## #???## ##? | | #??????## ##???????### % #????####?? | | #?????# ###?????## #### #?????????? | | #????? ??????# #??????????????? | | #???? #???????# # ##??????????????? | | #??# #???????##< ####???????????????? | | #### * ##????????## @#??????????????????? | | ## !% #?????????# #??????????????????? | | [ #?????????# #??????????????????? | | #??????????#ss#??????????????????? | | ? #????????"" s #??????????????????? | | #?????# """ ####??????????????????? | | ##?????# """ ??????????????????????? | | ##??????? ???????????????????????? | | # ##??????#### ???????????????????????? | | ### #?????????#????????????????????????? | | #??????????????????????????????????? | | #??????????????????????????????????? | | ### ##??????????????????????????????????? | | #?## #???????????????????????????????????? | | #??### #???????????????????????????????????? | | #????? #???????????????????????????????????? | | ##???? #???????????????????????????????????? | | ##??? #???????????????????????????????????? | | ##?? #???????????????????????????????????? | | ##? #???????????????????????????????????? | | ##? #???????????????????????????????????? | | # #???????????????????????????????????? | | # #???????????????????????????????????? | | # #???????????????????????????????????? | | ## #???????????????????????????????????? | +----------------------------------------------------+ Best States ------------- Heat Dissipation 25 Energy Generation 10 Energy Capacity 250 Matter Stores 300 Matter Capacity 300 Sight Range 16 Robot Scan Range 30 Terrain Scan Density 10 Cloak Strength 5 Evasion (%) 40 Item Schematics ----------------- None Robot Schematics ------------------ None Fabricated ------------ Nothing Alien Tech Used ----------------- None Achievements -------------- None Challenges ------------ None Game ------ Seed ElectronNuclearSource Manual? 0 Play Time 00:16:27 Cumulative 134.1 hours Start 2020.12.13 @ 17:31:19 End 2020.12.13 @ 17:44:42 Sessions 1 Manual Loads 0 Difficulty Rogue Special Mode None Game No. 137 Rogue 130 Adventurer 0 Explorer 7 Win Type - Total 2 Types 0/0/2/0/0/0/0/0/0 Lore% 57 Gallery% 85 Achievement% 64 Wizard Run 0 Options --------- ASCII 0 Keyboard 0 Movement Mouse Keybinds 0 Fullscreen 1 Font 18/X11 Map View 76x50 Tactical HUD 1 Map Filters NONE Filters NONE Steam 1 RUN: 30b1e19b-6555-4f14-8b65-7eb54b5beaac